bitfinex/quotes_ETHUSD_20240811
["timestamp","ask_amount","ask_price","bid_price","bid_amount"]
[1723398738416,19.49736274,2644.2,2643.8,2.64762]
[1723398738638,2.64746,2644.1,2643.5,2.64796]
[1723398738808,2.3483,2643.7,2643.1,2.64834]
[1723398739004,2.3483,2643.7,2643.2,2.64829]
[1723398739005,4.99619,2643.7,2643.2,2.64829]
[1723398739523,2.3483,2643.7,2643.3,2.64814]
[1723398740821,2.3483,2643.7,2643.1,2.64832]
[1723398741119,2.64793,2643.6,2643.1,2.64832]
[1723398741419,2.21448227,2644.0,2642.6,5.396]
[1723398741603,21.84566274,2644.2,2643.8,2.64763]
[1723398741604,9.56566274,2644.2,2643.8,2.64763]
[1723398741809,14.92706,2644.5,2644.1,2.64734]
[1723398741810,2.3483,2644.5,2644.1,2.64734]
[1723398742301,2.3483,2644.5,2644.0,2.64746]
[1723398742502,2.3483,2644.5,2644.1,2.64738]
[1723398742812,2.3483,2644.5,2643.8,2.64763]
[1723398742813,2.64712,2644.4,2643.8,2.64763]
[1723398743018,2.64712,2644.4,2643.2,2.396]
[1723398743019,2.64739,2644.2,2643.2,2.396]
[1723398743185,2.64739,2644.2,2643.6,2.64782]
[1723398743388,3.83424627,2644.5,2644.2,2.64723]
[1723398743389,1.48594627,2644.5,2644.2,2.64723]
[1723398743717,2.64685,2644.7,2644.2,2.64723]
[1723398743927,2.6469,2644.6,2644.0,5.29484]
[1723398744500,2.6469,2644.6,2644.1,2.64738]
[1723398744833,3.176265,2644.6,2644.1,2.64738]
[1723398745250,2.64729,2644.3,2643.8,2.64768]
[1723398745600,2.3483,2644.5,2644.0,2.64749]
[1723398745832,2.9007595,2644.5,2643.8,2.64768]
[1723398746033,2.64718,2644.4,2643.8,2.64768]
[1723398746245,2.64716,2644.4,2643.8,2.64765]
[1723398746437,2.3483,2644.5,2643.9,2.6475]
[1723398746603,2.3483,2644.5,2643.8,2.64765]
[1723398746604,2.64725,2644.3,2643.8,2.64765]
[1723398746799,0.23483,2644.4,2643.4,2.396]
[1723398747037,0.23483,2644.4,2644.0,2.64741]
[1723398748338,2.64725,2644.3,2643.8,2.64767]
[1723398748522,2.64725,2644.3,2643.4,2.396]
[1723398748523,0.787744,2644.3,2643.7,2.64778]
[1723398749021,3.435004,2644.3,2643.7,5.29552]
[1723398749214,3.435004,2644.3,2643.0,2.2505]
[1723398749215,0.6317004,2644.2,2643.0,2.2505]
[1723398749416,2.64761,2643.9,2643.3,2.64813]
[1723398750229,2.64771,2643.8,2643.3,2.64813]
[1723398750500,4.96932,2644.0,2643.0,2.64849]
[1723398750701,2.64813,2643.4,2642.8,2.6486]
[1723398750901,2.64813,2643.4,2642.9,2.6486]
[1723398751120,2.3218,2643.5,2642.5,2.64898]
[1723398751321,2.3218,2643.5,2643.1,2.64839]
[1723398751524,4.96951,2643.8,2643.1,2.64836]
[1723398751741,4.96951,2643.8,2643.3,2.64819]
[1723398752039,0.496951,2643.7,2643.4,2.64807]
[1723398752351,0.496951,2643.7,2643.0,2.2505]
[1723398752352,4.96956,2643.8,2643.1,2.64833]
[1723398752542,2.64797,2643.6,2642.9,2.64854]
[1723398752838,2.64797,2643.6,2642.6,2.740448]
[1723398752839,0.264797,2643.5,2642.8,5.29725]
[1723398753001,2.64818,2643.4,2642.8,2.64861]
[1723398753204,2.64818,2643.4,2642.8,5.29726]
[1723398753442,2.64818,2643.4,2642.8,5.29725]
[1723398753646,2.64818,2643.4,2642.9,2.64857]
[1723398753844,3.177789,2643.4,2642.9,2.64857]
[1723398754045,3.177789,2643.4,2642.8,2.64861]
[1723398754046,3.177789,2643.4,2642.8,5.29725]
[1723398754048,5.499579,2643.4,2642.8,5.29725]
[1723398754202,8.147749,2643.4,2642.8,2.64861]
[1723398754410,2.64832,2643.2,2642.6,5.787618]
[1723398754609,5.499579,2643.4,2642.8,2.6487]
[1723398754842,2.3218,2643.4,2642.6,0.489948]
[1723398755069,4.96957,2643.8,2643.2,2.64825]
[1723398755357,4.96957,2643.8,2643.2,2.64824]
[1723398755358,4.96956,2643.8,2643.2,2.64824]
[1723398755523,0.496956,2643.7,2643.2,2.64824]
[1723398756507,0.496956,2643.7,2643.0,2.64844]
[1723398756508,2.64792,2643.6,2643.0,2.64844]
[1723398756708,2.64792,2643.6,2642.6,3.519008]
[1723398756709,2.64836,2643.2,2642.6,2.64885]
[1723398756909,2.6485,2643.0,2642.5,2.64891]
[1723398757207,2.3218,2642.9,2642.3,2.64912]
[1723398757413,2.3218,2642.9,2642.4,2.64905]
[1723398757643,2.3218,2642.9,2642.3,5.29826]
[1723398757848,2.3218,2642.9,2642.4,2.64904]
[1723398758309,2.3218,2642.9,2642.1,2.64935]
[1723398758310,2.64887,2642.7,2642.1,2.64935]
[1723398758949,2.64891,2642.6,2642.1,2.64935]
[1723398759113,2.64907,2642.5,2641.9,2.64953]
[1723398759314,4.97041,2642.9,2642.3,2.64914]
[1723398759548,2.64871,2642.8,2642.3,2.64914]
[1723398759847,2.3218,2642.9,2642.3,2.64917]
[1723398760045,2.64872,2642.8,2642.3,2.64917]
[1723398760346,5.29748,2642.8,2642.3,2.64917]
[1723398760512,4.13238427,2642.8,2642.3,2.64917]
[1723398760844,2.3218,2642.9,2642.5,2.64897]
[1723398761007,2.3218,2642.9,2642.4,2.64909]
[1723398761212,2.3218,2642.9,2642.0,2.64946]
[1723398761543,2.3218,2642.9,2642.5,2.64892]
[1723398761745,9.53916274,2643.0,2642.5,2.64892]
[1723398761916,9.53916274,2643.0,2642.7,2.64875]
[1723398762110,2.64836,2643.2,2642.5,2.64893]
[1723398762111,2.3218,2643.3,2642.6,0.07568054]
[1723398762312,9.86542274,2643.5,2643.3,2.6482]
[1723398762313,7.21736274,2643.5,2643.3,2.6482]
[1723398762652,2.3218,2643.7,2643.3,2.6482]
[1723398762817,2.3218,2643.7,2643.1,2.64831]
[1723398763016,4.96966,2643.7,2643.1,2.64831]
[1723398763344,2.64796,2643.6,2642.9,5.29705]
[1723398763531,2.64828,2643.3,2642.7,2.64874]
[1723398763733,2.6481,2643.4,2642.7,2.64874]
[1723398764047,2.64796,2643.6,2643.0,5.2969]
[1723398764343,2.64796,2643.6,2643.0,2.64841]
[1723398764344,2.64792,2643.6,2643.0,2.64841]
[1723398764651,2.648,2643.5,2643.0,2.64841]
[1723398764856,2.64796,2643.6,2643.0,2.64842]
[1723398765010,9.53916274,2643.7,2642.6,3.14634605]
[1723398765011,2.64831,2643.2,2642.6,3.14634605]
[1723398765215,2.64827,2643.3,2642.7,2.64872]
[1723398765616,2.64831,2643.2,2642.7,2.64872]
[1723398766539,2.64831,2643.2,2642.5,3.02913]
[1723398766540,2.64845,2643.1,2642.5,3.02913]
[1723398766745,2.64864,2642.9,2642.4,2.64903]
[1723398766963,4.9704,2643.0,2642.4,2.64903]
[1723398767526,2.64871,2642.8,2642.2,5.29846]
[1723398767733,4.97071,2642.6,2642.1,2.6494]
[1723398767930,2.64901,2642.5,2641.9,2.64955]
[1723398768133,1.25137127,2643.2,2643.0,0.08008505]
[1723398768134,2.6484,2643.1,2643.0,0.08008505]
[1723398768351,3.4952734,2643.1,2643.0,0.08008505]
[1723398768654,8.7920734,2643.1,2643.0,0.08008505]
[1723398769367,11.4404734,2643.1,2643.0,0.08008505]
[1723398769665,14.4404734,2643.1,2643.0,0.08008505]
[1723398770004,14.4404734,2643.1,2643.0,5.05e-06]
[1723398771268,16.8639734,2643.1,2643.0,5.05e-06]
[1723398772442,10.3366,2642.2,2642.1,5.05050505]
[1723398772721,7.6873,2642.2,2642.1,5.05050505]
[1723398774464,10.3366,2642.2,2642.1,5.05050505]
[1723398775179,13.3366,2642.2,2642.1,5.05050505]
[1723398775382,10.6873,2642.2,2642.1,5.05050505]
[1723398775579,12.11623,2642.2,2642.1,5.05050505]
[1723398776649,2.4235,2642.6,2642.1,5.05050505]
[1723398776850,2.64926,2642.3,2642.1,5.05050505]
[1723398777676,2.6492,2642.4,2642.1,5.05050505]
[1723398777839,5.29831,2642.4,2642.1,5.05050505]
[1723398778182,2.64915,2642.4,2642.1,5.05050505]
[1723398778535,2.64926,2642.3,2642.1,5.05050505]
[1723398779632,5.29795,2642.6,2642.1,8.20493556]
[1723398779884,5.29795,2642.6,2642.1,5.55555556]
[1723398779885,2.64896,2642.6,2642.1,5.55555556]
[1723398780373,2.64924,2642.3,2642.1,5.05050505]
[1723398780573,5.29853,2642.3,2642.1,5.05050505]
[1723398780758,2.64924,2642.3,2642.1,5.05050505]
[1723398781593,9.64086274,2642.9,2642.1,7.69987505]
[1723398781798,9.64086274,2642.9,2642.3,2.64919]
[1723398781799,9.86601274,2642.9,2642.3,2.64919]
[1723398782293,7.21736274,2642.9,2642.2,3.04038751]
[1723398782503,2.64881,2642.7,2642.2,3.04038751]
[1723398782667,2.64862,2642.9,2642.3,3.45827926]
[1723398783050,2.64851,2643.0,2642.3,3.45822926]
[1723398783250,2.64841,2643.1,2642.3,0.88477527]
[1723398783571,2.64841,2643.1,2642.6,2.64885]
[1723398783771,2.64841,2643.1,2642.5,2.64898]
[1723398784085,2.64856,2643.0,2642.4,0.31551753]
[1723398784265,2.64841,2643.1,2642.5,2.64899]
[1723398784478,2.64841,2643.1,2642.5,5.29792]
[1723398784822,5.07152,2643.5,2642.7,2.2704]
[1723398784823,2.64807,2643.5,2642.7,2.2704]
[1723398784967,2.64805,2643.5,2642.8,2.64865]
[1723398785175,2.64805,2643.5,2642.9,3.405379]
[1723398785594,2.64805,2643.5,2642.9,0.756779]
[1723398785805,2.64805,2643.5,2642.9,6.053919]
[1723398786128,2.64805,2643.5,2642.9,3.405359]
[1723398786129,5.29611,2643.5,2642.9,3.405359]
[1723398786325,2.64805,2643.5,2643.0,2.64848]
[1723398786628,2.64811,2643.4,2643.0,0.6053839]
[1723398786979,2.64805,2643.5,2642.9,5.29714]
[1723398787292,2.64817,2643.4,2642.7,4.9191]
[1723398787490,2.64762,2643.9,2642.7,4.91917]
[1723398787674,2.64762,2643.9,2642.7,2.2704]
[1723398787675,2.64835,2643.2,2642.7,2.2704]
[1723398787876,2.64781,2643.7,2642.7,2.2704]
[1723398787877,2.64851,2643.0,2642.7,2.2704]
[1723398788178,2.64862,2642.9,2642.4,2.2704]
[1723398788525,2.64881,2642.7,2642.4,2.2704]
[1723398789835,2.64881,2642.7,2642.1,7.35460505]
[1723398789836,2.64891,2642.6,2642.1,7.35460505]
[1723398790145,2.64881,2642.7,2642.1,8.35501056]
[1723398790290,2.64866,2642.9,2642.1,8.35501056]
[1723398790489,2.64855,2643.0,2642.4,2.64907]
[1723398790810,2.64855,2643.0,2642.2,2.64925]
[1723398790811,2.64871,2642.8,2642.2,2.64925]
[1723398791012,5.29712,2643.0,2642.4,2.64908]
[1723398791209,2.64862,2642.9,2642.4,2.64908]
[1723398791847,2.64872,2642.8,2642.2,3.48471106]
[1723398792141,2.64896,2642.6,2642.1,7.35460505]
[1723398792291,5.64812,2643.4,2642.1,7.35460505]
[1723398792292,2.64856,2643.0,2642.3,2.64912]
[1723398792627,2.64856,2643.0,2642.1,7.35460505]
[1723398792628,2.64893,2642.6,2642.1,7.35460505]
[1723398792926,2.649,2642.5,2642.1,8.35501056]
[1723398793128,2.64853,2643.0,2642.1,7.35460505]
[1723398793129,5.29828,2642.4,2642.1,7.35460505]
[1723398793291,5.29828,2642.4,2642.1,5.05050505]
[1723398793292,2.64911,2642.4,2642.1,5.05050505]
[1723398794004,2.64926,2642.3,2642.1,5.05050505]
[1723398794202,2.64911,2642.4,2642.1,5.05050505]
[1723398794384,2.64897,2642.6,2642.1,5.05050505]
[1723398794591,2.64902,2642.5,2642.1,5.05050505]
[1723398794912,2.64896,2642.6,2642.1,5.05050505]
[1723398795433,2.64882,2642.7,2642.2,2.64921]
[1723398795636,2.64882,2642.7,2642.3,2.3041]
[1723398795790,2.64876,2642.8,2642.3,2.3041]
[1723398796140,2.64876,2642.8,2642.3,4.9533]
[1723398796287,2.64857,2643.0,2642.3,4.95327]
[1723398796495,2.64857,2643.0,2642.3,6.29558586]
[1723398796800,2.64881,2642.7,2642.3,3.64641586]
[1723398797112,2.64856,2643.0,2642.4,2.64903]
[1723398797319,2.64856,2643.0,2642.3,6.29561586]
[1723398797320,5.05054,2643.3,2642.3,3.64641586]
[1723398797487,2.64877,2642.8,2642.3,3.64641586]
[1723398797790,2.64881,2642.7,2642.3,3.64641586]
[1723398798829,2.64855,2643.0,2642.3,6.29561586]
[1723398799033,2.9939094,2643.0,2642.3,8.94476586]
[1723398799239,2.64865,2642.9,2642.3,6.29556586]
[1723398799592,2.64897,2642.6,2642.1,5.05050505]
[1723398799794,2.64897,2642.6,2642.1,7.69985505]
[1723398800294,2.64873,2642.8,2642.1,5.05050505]
[1723398800588,2.94813894,2642.8,2642.1,5.05050505]
[1723398801150,2.64865,2642.9,2642.1,5.05050505]
[1723398801339,2.64865,2642.9,2642.3,2.64915]
[1723398801785,2.64909,2642.5,2642.1,5.05050505]
[1723398801992,2.6492,2642.3,2642.1,5.05050505]
[1723398802346,2.6493,2642.2,2642.1,5.05050505]
[1723398802603,5.2986,2642.2,2642.1,5.05050505]
[1723398804053,10.3502,2642.2,2642.1,5.05050505]
[1723398804991,2.6493,2642.2,2642.1,5.05050505]
[1723398805366,5.2986,2642.2,2642.1,5.05050505]
[1723398805970,5.82846,2642.2,2642.1,5.05050505]
[1723398808801,3.17916,2642.2,2642.1,5.05050505]
[1723398808967,2.6492,2642.4,2642.1,5.05050505]
[1723398809304,2.64926,2642.3,2642.1,5.05050505]
[1723398809655,2.6493,2642.2,2642.1,5.05050505]
[1723398810356,7.9479,2642.2,2642.1,5.05050505]
[1723398810604,9.32716,2642.2,2642.1,5.05050505]
[1723398811151,3.67786,2642.2,2642.1,5.05050505]
[1723398811602,14.31416,2642.2,2642.1,5.05050505]
[1723398811803,13.2856,2642.2,2642.1,5.05050505]
[1723398813824,15.9349,2642.2,2642.1,5.05050505]
[1723398814012,13.2856,2642.2,2642.1,5.05050505]
[1723398814316,15.9349,2642.2,2642.1,5.05050505]
[1723398814505,19.51539,2642.2,2642.1,4.6362058]
[1723398814711,20.82548099,2642.2,2642.1,4.6362058]
[1723398814880,20.82548099,2642.2,2642.1,5.8e-06]
[1723398815327,41.24548099,2642.2,2642.1,5.8e-06]
[1723398815524,43.89478099,2642.2,2642.1,5.8e-06]
[1723398815829,41.24548099,2642.2,2642.1,5.8e-06]
[1723398816984,40.69548099,2642.2,2642.1,5.8e-06]
[1723398817184,5.30062,2641.2,2641.1,5.05050505]
[1723398817488,7.95093,2641.2,2641.1,5.05050505]
[1723398817699,10.95093,2641.2,2641.1,5.05050505]
[1723398819499,8.30062,2641.2,2641.1,5.05050505]
[1723398821235,10.95093,2641.2,2641.1,5.05050505]
[1723398821533,12.046023,2641.2,2641.1,5.05050505]
[1723398823626,9.395713,2641.2,2641.1,5.05050505]
[1723398824813,9.380713,2641.2,2641.1,5.05050505]
[1723398825602,8.28562,2641.2,2641.1,5.05050505]
[1723398826809,10.93593,2641.2,2641.1,5.05050505]
[1723398827041,8.28562,2641.2,2641.1,5.05050505]
[1723398827348,10.93593,2641.2,2641.1,5.05050505]
[1723398829055,8.28562,2641.2,2641.1,5.05050505]
[1723398829260,12.269262,2641.2,2641.1,5.05050505]
[1723398830845,14.919572,2641.2,2641.1,5.05050505]
[1723398831227,14.919572,2641.2,2641.1,1.26420505]
[1723398831427,15.469572,2641.2,2641.1,5.05e-06]
[1723398832234,12.819262,2641.2,2641.1,5.05e-06]
[1723398832623,15.469572,2641.2,2641.1,5.05e-06]
[1723398832857,12.819262,2641.2,2641.1,5.05e-06]
[1723398833055,15.469572,2641.2,2641.1,5.05e-06]
[1723398833360,19.22358887,2641.2,2641.1,5.05e-06]
[1723398833529,17.912972,2641.2,2641.1,5.05e-06]
[1723398833730,19.22359261,2641.2,2641.1,5.05e-06]
[1723398834058,16.57328261,2641.2,2641.1,5.05e-06]
[1723398834261,17.912972,2641.2,2641.1,5.05e-06]
[1723398834466,16.57327748,2641.2,2641.1,5.05e-06]
[1723398834666,15.262662,2641.2,2641.1,5.05e-06]
[1723398834866,17.912972,2641.2,2641.1,5.05e-06]
[1723398835161,19.22358421,2641.2,2641.1,5.05e-06]
[1723398835326,16.57327768,2641.2,2641.1,5.05e-06]
[1723398835526,15.262662,2641.2,2641.1,5.05e-06]
[1723398836579,6.618952,2641.2,2641.1,5.05e-06]
[1723398836729,2.64998,2641.6,2641.1,2.31480505]
[1723398837060,2.64998,2641.6,2641.2,2.3148]
[1723398837562,2.65012,2641.4,2641.2,2.3148]
[1723398838365,2.65021,2641.3,2641.2,2.3148]
[1723398838596,5.29951,2641.8,2641.2,2.3148]
[1723398838725,9.86719274,2641.7,2641.2,2.3148]
[1723398840360,7.21736274,2641.7,2641.4,2.6501]
[1723398840661,7.21736274,2641.7,2641.3,2.3148]
[1723398840863,2.64966,2641.9,2641.4,2.3148]
[1723398842553,7.21736274,2642.0,2641.5,2.3148]
[1723398842752,7.21736274,2642.6,2642.1,2.3148]
[1723398843034,7.21736274,2642.6,2642.2,2.3148]
[1723398843035,2.64892,2642.6,2642.2,2.3148]
[1723398844045,7.21736274,2642.9,2642.4,2.64907]
[1723398844351,7.21736274,2642.9,2642.5,2.3148]
[1723398844943,9.86597274,2642.9,2642.5,2.3148]
[1723398845763,7.21736274,2642.9,2642.5,2.3148]
[1723398845969,2.64871,2642.8,2642.5,2.3148]
[1723398846870,2.6493,2642.3,2641.9,2.3148]
[1723398847032,2.64926,2642.3,2641.9,2.3148]
[1723398847366,2.6493,2642.2,2641.9,2.3148]
[1723398847761,2.64918,2642.4,2641.9,2.3148]
[1723398847973,2.64902,2642.5,2641.9,2.3148]
[1723398848167,2.64902,2642.5,2641.9,4.96432]
[1723398848466,2.64896,2642.6,2641.9,4.96432]
[1723398848467,2.64913,2642.4,2641.9,2.3148]
[1723398849945,3.01251673,2642.6,2641.9,4.96439]
[1723398850341,2.64902,2642.5,2641.9,2.3148]
[1723398850542,2.6491,2642.4,2641.9,2.3148]
[1723398850747,5.29827,2642.4,2641.9,2.3148]
[1723398851073,2.6491,2642.4,2641.9,2.3148]
[1723398851242,2.64935,2642.2,2641.9,2.3148]
[1723398851447,2.64946,2642.1,2641.9,2.3148]
[1723398851672,0.56616167,2642.4,2641.9,2.3148]
[1723398851673,2.64925,2642.3,2641.9,2.3148]
[1723398852582,2.64947,2642.1,2641.9,2.3148]
[1723398853873,2.97079217,2642.3,2641.9,2.3148]
[1723398854555,2.64942,2642.1,2641.9,2.3148]
[1723398854789,2.6495,2642.0,2641.9,2.3148]
[1723398855149,5.299,2642.0,2641.9,2.3148]
[1723398855351,2.64973,2641.8,2641.3,2.4543]
[1723398855678,2.64973,2641.8,2641.3,5.10449]
[1723398855890,3.17947,2642.0,2641.3,5.10449]
[1723398856062,2.64963,2641.9,2641.4,2.6501]
[1723398856263,0.5299,2642.0,2641.5,2.4543]
[1723398856464,7.21736274,2642.1,2641.7,2.4543]
[1723398856681,9.86678274,2642.1,2641.7,2.4543]
[1723398857404,2.64951,2642.0,2641.7,2.4543]
[1723398857763,9.86678274,2642.1,2641.7,2.4543]
[1723398857967,12.11361423,2642.1,2641.7,2.4543]
[1723398858672,4.89625149,2642.1,2641.7,2.4543]
[1723398858871,2.64942,2642.1,2641.7,2.4543]
[1723398859685,0.32153217,2642.3,2641.7,2.4543]
[1723398859882,2.64946,2642.1,2641.7,2.4543]
[1723398861172,2.97080217,2642.3,2641.7,2.4543]
[1723398861367,2.97079217,2642.3,2641.7,2.4543]
[1723398861575,2.64941,2642.1,2641.7,2.4543]
[1723398861777,2.64931,2642.2,2641.7,2.4543]
[1723398862003,3.72474166,2642.2,2641.7,2.4543]
[1723398863021,1.07543166,2642.2,2641.7,5.1041]
[1723398863506,3.72474166,2642.2,2641.7,5.1041]
[1723398863803,3.72474166,2642.2,2641.7,2.4543]
[1723398864109,2.64946,2642.1,2641.7,2.4543]
[1723398864504,2.6495,2642.0,2641.7,2.4543]
[1723398864810,2.64953,2642.0,2641.7,2.4543]
[1723398865712,2.64966,2641.9,2641.7,2.4543]
[1723398866286,2.64953,2642.0,2641.7,2.4543]
[1723398866287,5.29913,2642.0,2641.7,2.4543]
[1723398866492,2.64953,2642.0,2641.7,2.4543]
[1723398867409,0.66956838,2642.1,2641.7,2.4543]
[1723398867613,3.31901838,2642.1,2641.7,2.4543]
[1723398867981,9.86651274,2642.4,2641.7,5.10405]
[1723398868239,7.21736274,2642.4,2641.9,2.64955]
[1723398868522,7.21736274,2642.4,2642.1,2.64939]
[1723398868684,7.21736274,2642.4,2642.0,5.1038]
[1723398868878,7.21736274,2642.4,2642.0,2.4543]
[1723398869507,7.21736274,2642.4,2642.0,5.10375]
[1723398869693,2.64895,2642.6,2642.1,2.4481]
[1723398869903,2.64916,2642.4,2642.1,2.4481]
[1723398870091,4.406764,2642.6,2642.1,2.4481]
[1723398870092,4.406764,2642.6,2642.1,5.09745]
[1723398870298,2.64897,2642.6,2642.1,5.09745]
[1723398870493,9.86612274,2642.8,2642.1,5.09745]
[1723398870816,12.51488274,2642.8,2642.2,2.64925]
[1723398871187,2.64863,2642.9,2642.4,2.4481]
[1723398871386,2.94863,2642.9,2642.4,2.4481]
[1723398871684,5.29755,2642.8,2642.4,2.4481]
[1723398872033,2.64876,2642.8,2642.4,2.4481]
[1723398873117,2.94864,2642.9,2642.4,2.4481]
[1723398873324,0.294864,2642.8,2642.4,2.4481]
[1723398873488,2.64886,2642.7,2642.4,2.4481]
[1723398873991,2.6489,2642.6,2642.4,2.4481]
[1723398874196,2.649,2642.5,2642.4,2.4481]
[1723398874391,5.298,2642.5,2642.4,2.4481]
[1723398874597,3.1788,2642.5,2642.4,2.4481]
[1723398874794,2.64887,2642.7,2642.4,2.4481]
[1723398875390,2.649,2642.5,2642.4,2.4481]
[1723398875532,2.649,2642.5,2641.9,2.4481]
[1723398875713,2.649,2642.5,2641.9,5.09765]
[1723398876232,0.294864,2642.8,2642.0,2.4481]
[1723398876424,9.86582274,2643.1,2642.4,2.4481]
[1723398876737,5.29729,2642.9,2642.4,2.4481]
[1723398877049,5.2973,2642.9,2642.4,2.4481]
[1723398877233,5.64857,2643.0,2642.4,5.0971]
[1723398877408,2.64863,2642.9,2642.4,5.0971]
[1723398879025,2.64871,2642.8,2642.4,2.4481]
[1723398879256,2.64857,2643.0,2642.4,2.4481]
[1723398879257,2.64899,2642.6,2642.4,2.4481]
[1723398879753,2.649,2642.5,2642.4,2.4481]
[1723398881740,2.64883,2642.7,2642.4,2.4481]
[1723398881930,2.6489,2642.6,2642.4,2.4481]
[1723398883239,2.64875,2642.8,2642.4,2.4481]
[1723398883436,5.29753,2642.8,2642.4,2.4481]
[1723398883650,2.64875,2642.8,2642.4,2.4481]
[1723398885744,2.64861,2642.9,2642.5,2.4481]
[1723398885922,3.7338666,2642.9,2642.5,2.4481]
[1723398886961,9.86584274,2643.1,2642.5,5.09701]
[1723398886962,9.86583274,2643.1,2642.5,5.09701]
[1723398887163,2.64856,2643.0,2642.5,2.4481]
[1723398887509,2.64856,2643.0,2642.5,5.09704]
[1723398888739,7.21736274,2643.1,2642.7,2.64876]
[1723398889341,7.21736274,2643.1,2642.7,2.64874]
[1723398890008,9.99676901,2643.1,2642.6,2.4481]
[1723398890208,2.64863,2642.9,2642.6,2.4481]
[1723398891030,2.6485,2643.0,2642.6,2.4481]
[1723398891239,4.1778669,2643.0,2642.6,2.4481]
[1723398891437,1.5293669,2643.0,2642.6,2.4481]
[1723398891751,12.64516901,2643.1,2642.6,5.09694]
[1723398892247,7.21736274,2643.1,2642.6,2.4481]
[1723398892543,2.64841,2643.1,2642.6,2.4481]
[1723398893216,2.64841,2643.1,2642.6,5.097]
[1723398894389,2.64841,2643.1,2642.6,2.4481]
[1723398894952,5.29687,2643.1,2642.6,2.4481]
[1723398895382,2.64851,2643.0,2642.6,2.4481]
[1723398897194,0.829687,2643.1,2642.6,2.4481]
[1723398897420,7.21736274,2643.9,2643.0,2.4707]
[1723398897721,2.64795,2643.6,2643.1,2.64831]
[1723398897860,2.64776,2643.8,2643.3,2.4707]
[1723398898314,5.29556,2643.8,2643.3,2.4707]
[1723398898507,5.29554,2643.8,2643.3,2.4707]
[1723398898801,3.177314,2643.8,2643.3,5.11889]
[1723398899030,0.529554,2643.8,2643.3,5.11885]
[1723398899324,0.59500118,2644.2,2643.6,5.11854]
[1723398899325,2.64741,2644.1,2643.6,5.11854]
[1723398899528,2.6474,2644.2,2643.6,2.4707]
[1723398899733,2.64751,2644.0,2643.6,2.4707]
[1723398900596,2.3737,2644.6,2642.9,2.71]
[1723398900597,0.59267944,2645.4,2644.7,2.4707]
[1723398900793,2.64651,2645.0,2644.7,2.4707]
[1723398901025,0.264651,2644.9,2644.7,2.4707]
[1723398901225,2.6467,2644.8,2644.7,2.4707]
[1723398901743,2.64698,2644.6,2643.9,3.0]
[1723398901964,2.64698,2644.6,2644.0,2.4707]
[1723398902109,2.64712,2644.4,2644.0,2.4707]
[1723398902309,2.64713,2644.4,2644.0,2.4707]
[1723398902510,2.64694,2644.6,2644.0,2.4707]
[1723398902739,3.176307,2644.6,2644.0,2.4707]
[1723398902952,0.529367,2644.6,2644.1,2.64739]
[1723398903169,2.64685,2644.7,2644.1,2.64739]
[1723398903311,2.64673,2644.8,2644.1,2.64739]
[1723398903962,2.64712,2644.4,2644.0,2.4707]
[1723398905057,5.29392,2644.6,2644.0,2.4707]
[1723398905244,0.264693,2644.5,2644.0,2.4707]
[1723398905443,0.264693,2644.5,2644.0,5.11818]
[1723398906053,0.264693,2644.5,2644.0,2.4707]
[1723398906054,2.911753,2644.5,2644.0,2.4707]
[1723398906357,0.264693,2644.5,2644.0,5.11814]
[1723398906561,2.64693,2644.6,2644.0,5.11814]
[1723398906972,2.64693,2644.6,2644.0,2.4707]
[1723398907269,7.21736274,2644.8,2644.1,2.64731]
[1723398907270,9.86410274,2644.8,2644.1,2.64731]
[1723398907781,3.63326027,2644.7,2644.1,5.29465]
[1723398907944,3.63325027,2644.7,2644.0,2.4707]
[1723398908144,0.98641027,2644.7,2644.3,2.64719]
[1723398908349,0.98641027,2644.7,2644.2,2.64723]
[1723398908547,2.6469,2644.6,2644.0,5.11811]
[1723398908750,3.9966393,2644.6,2644.0,5.11811]
[1723398909075,1.3497393,2644.6,2644.2,2.64729]
[1723398909982,9.86408274,2644.8,2644.2,2.64724]
[1723398910194,7.21736274,2644.8,2644.4,2.64702]
[1723398910332,7.21736274,2644.8,2644.6,2.6468]
[1723398910530,2.64633,2645.2,2644.6,2.6468]
[1723398910982,2.64633,2645.2,2644.5,2.3458]
[1723398911187,2.64641,2645.1,2644.5,4.9927]
[1723398911383,6.54368427,2645.2,2644.6,2.64688]
[1723398911530,6.54368427,2645.2,2644.5,2.3458]
[1723398911531,2.64647,2645.1,2644.5,2.3458]
[1723398911729,2.64651,2645.0,2644.5,2.3458]
[1723398912154,5.29309,2645.0,2644.5,2.3458]
[1723398912348,2.64651,2645.0,2644.5,2.3458]
[1723398912562,0.264651,2644.9,2644.5,2.3458]
[1723398912778,2.64717,2644.4,2643.9,2.3458]
[1723398913074,2.64702,2644.5,2643.9,4.99333]
[1723398913368,2.64696,2644.6,2643.9,2.3458]
[1723398913568,2.64718,2644.4,2643.9,2.3458]
[1723398913767,2.64738,2644.2,2643.9,2.3458]
[1723398914163,2.64715,2644.4,2643.9,2.3458]
[1723398914467,2.64721,2644.3,2643.9,2.3458]
[1723398915370,2.64731,2644.2,2643.9,2.3458]
[1723398915868,2.64731,2644.2,2642.9,2.3458]
[1723398915869,2.64803,2643.5,2642.9,2.3458]
[1723398916070,2.64782,2643.7,2642.9,2.3458]
[1723398916283,2.64822,2643.3,2642.9,2.3458]
[1723398916438,2.64831,2643.2,2642.9,2.3458]
[1723398916635,2.64831,2643.2,2642.2,5.35926]
[1723398916636,7.21736274,2643.6,2642.3,2.3458]
[1723398916857,2.64868,2642.9,2642.3,2.3458]
[1723398917055,7.21736274,2643.3,2642.6,2.64881]
[1723398917394,9.86556274,2643.3,2642.5,2.3458]
[1723398917701,2.64794,2643.6,2643.0,2.64844]
[1723398917994,2.64786,2643.7,2643.0,2.64844]
[1723398918300,2.64786,2643.7,2643.1,2.64834]